[Event "41st Jacques-Lemans-Open 2022"]
[Site "St. Veit/Glan"]
[Date "2022.07.15"]
[Round "8.2"]
[White "Vojinov, Danijel"]
[Black "Windhager, Hannes"]
[Result "1/2-1/2"]
[ECO "A00"]
[WhiteElo "2201"]
[BlackElo "2244"]
[Annotator "ChessBase"]
[PlyCount "108"]
[EventDate "2022.07.09"]
[EventType "swiss"]
[EventCountry "AUT"]
[SourceTitle "playchess.com"]
[Source "ChessBase"]
[SourceQuality "1"]
[TimeControl "40/5400+30:1800+30"]

1. b4 {[%emt 0:00:04]} e5 {[%emt 0:00:18]} 2. Bb2 {[%emt 0:00:13]} Bxb4 {[%emt 0:00:22]} 3. Bxe5 {[%emt 0:00:08]} Nf6 {[%emt 0:00:10]} 4. c3 {[%emt 0:00:20]} Be7 {[%emt 0:00:49]} 5. d4 {[%emt 0:00:11]} d5 {[%emt 0:00:41]} 6. Bxf6 {[%emt 0:00:22]} Bxf6 {[%emt 0:00:07]} 7. e3 {[%emt 0:00:16]} c5 {[%emt 0:00:50]} 8. Bd3 {[%emt 0:01:23]} Nc6 {[%emt 0:00:33]} 9. Nd2 {[%emt 0:00:46]} c4 {[%emt 0:00:31]} 10. Bc2 {[%emt 0:00:14]} b5 {[%emt 0:01:04]} 11. Qf3 {[%emt 0:01:22]} a5 {[%emt 0:01:05]} 12. Ne2 {[%emt 0:02:14]} Ra6 {[%emt 0:01:45]} 13. e4 {[%emt 0:02:14]} Bg5 {[%emt 0:02:49]} 14. exd5 {[%emt 0:04:03]} Bxd2+ {[%emt 0:00:21]} 15. Kxd2 {[%emt 0:00:09]} Ne7 {[%emt 0:00:55]} 16. Rhe1 {[%emt 0:06:13]} O-O {[%emt 0:03:00]} 17. Nf4 {[%emt 0:03:58]} b4 {[%emt 0:11:40]} 18. Rab1 {[%emt 0:11:52]} Rd6 {[%emt 0:10:17]} 19. Re5 {[%emt 0:06:31]} Bb7 {[%emt 0:09:20]} 20. Qe4 {[%emt 0:11:04]} f5 {[%emt 0:04:47]} 21. Qe2 {[%emt 0:04:21]} Nxd5 {[%emt 0:01:46]} 22. Nxd5 {[%emt 0:07:08]} Bxd5 {[%emt 0:10:37]} 23. f4 {[%emt 0:01:01]} Bf7 {[%emt 0:07:22]} 24. Qe3 {[%emt 0:03:33]} Qa8 {[%emt 0:02:22]} 25. Bxf5 {[%emt 0:11:54]} Qxg2+ {[%emt 0:02:59]} 26. Qe2 {[%emt 0:02:41]} Qxe2+ {[%emt 0:03:09]} 27. Rxe2 {[%emt 0:02:21]} Bd5 {[%emt 0:05:54]} 28. Be4 {[%emt 0:04:07]} Rxf4 {[%emt 0:04:07]} 29. Bxd5+ {[%emt 0:00:52]} Rxd5 {[%emt 0:00:04]} 30. cxb4 {[%emt 0:01:25]} Rdxd4+ {[%emt 0:02:16]} 31. Kc2 {[%emt 0:01:15]} axb4 {[%emt 0:01:14]} 32. Rxb4 {[%emt 0:00:39]} h5 {[%emt 0:03:57]} 33. a4 {[%emt 0:03:24]} Rf3 {[%emt 0:02:51]} 34. Rb5 {[%emt 0:04:29]} Ra3 {[%emt 0:01:48]} 35. Re8+ {[%emt 0:01:40]} Kf7 {[%emt 0:00:27]} 36. Ra8 {[%emt 0:00:39]} c3 {[%emt 0:01:27]} 37. Ra7+ {[%emt 0:01:07]} Kg8 {[%emt 0:00:44]} 38. Rb3 {[%emt 0:01:21]} Raxa4 {[%emt 0:01:18]} 39. Rxa4 {[%emt 0:00:23]} Rxa4 {[%emt 0:00:04]} 40. Kxc3 {[%emt 0:00:29]} Re4 {[%emt 0:02:39]} 41. Kd3 {[%emt 0:31:15]} Re5 {[%emt 0:31:50]} 42. h4 {[%emt 0:00:00]} Kf7 {[%emt 0:00:00]} 43. Rb6 {[%emt 0:00:00]} Ra5 {[%emt 0:00:00]} 44. Ke4 {[%emt 0:00:00]} Ra4+ {[%emt 0:00:00]} 45. Kf5 {[%emt 0:00:00]} Rg4 {[%emt 0:00:00]} 46. Rb7+ {[%emt 0:00:00]} Kg8 {[%emt 0:00:00]} 47. Re7 {[%emt 0:00:00]} Rxh4 {[%emt 0:00:00]} 48. Kg6 {[%emt 0:00:00]} Kf8 {[%emt 0:00:00]} 49. Rf7+ {[%emt 0:00:00]} Ke8 {[%emt 0:00:00]} 50. Rf1 {[%emt 0:00:00]} Rg4+ {[%emt 0:00:03]} 51. Kxh5 {[%emt 0:00:00]} Rg2 {[%emt 0:00:10]} 52. Kh4 {[%emt 0:00:00]} Ke7 {[%emt 0:00:10]} 53. Kh3 {[%emt 0:00:00]} Ra2 {[%emt 0:00:08]} 54. Kg3 {[%emt 0:00:00]} Ra3+ {[%emt 0:00:07]} 1/2-1/2

[Event "41st Jacques-Lemans-Open 2022"]
[Site "St. Veit/Glan"]
[Date "2022.07.15"]
[Round "8.3"]
[White "Koelber, Daniel"]
[Black "Hechl, Gerald"]
[Result "1/2-1/2"]
[ECO "B12"]
[WhiteElo "2176"]
[BlackElo "2222"]
[Annotator "ChessBase"]
[PlyCount "27"]
[EventDate "2022.07.09"]
[EventType "swiss"]
[EventCountry "AUT"]
[SourceTitle "playchess.com"]
[Source "ChessBase"]
[SourceQuality "1"]
[TimeControl "40/5400+30:1800+30"]

1. e4 {[%emt 0:00:04]} c6 {[%emt 0:00:03]} 2. d4 {[%emt 0:00:24]} d5 {[%emt 0:00:05]} 3. e5 {[%emt 0:00:14]} Bf5 {[%emt 0:00:04]} 4. Nf3 {[%emt 0:00:13]} e6 {[%emt 0:00:04]} 5. Be2 {[%emt 0:00:23]} Bb4+ {[%emt 0:00:06]} 6. c3 {[%emt 0:03:01]} Ba5 {[%emt 0:00:05]} 7. O-O {[%emt 0:01:04]} Nd7 {[%emt 0:00:03]} 8. Nbd2 {[%emt 0:04:19]} Bc7 {[%emt 0:00:13]} 9. Re1 {[%emt 0:08:12]} h6 {[%emt 0:00:04]} 10. Nb3 {[%emt 0:04:02]} Ne7 {[%emt 0:02:40]} 11. Bf4 {[%emt 0:11:30]} g5 {[%emt 0:11:57]} 12. Bg3 {[%emt 0:02:03]} Ng6 {[%emt 0:01:30]} 13. Nfd2 {[%emt 0:00:36]} Qe7 {[%emt 0:01:46]} 14. c4 {[%emt 0:05:52]} 1/2-1/2

[Event "41st Jacques-Lemans-Open 2022"]
[Site "St. Veit/Glan"]
[Date "2022.07.15"]
[Round "8.4"]
[White "Feinig, Mario"]
[Black "Fahrner, Kurt"]
[Result "1-0"]
[ECO "B06"]
[WhiteElo "2141"]
[BlackElo "2331"]
[Annotator "ChessBase"]
[PlyCount "43"]
[EventDate "2022.07.09"]
[EventType "swiss"]
[EventCountry "AUT"]
[SourceTitle "playchess.com"]
[Source "ChessBase"]
[SourceQuality "1"]
[TimeControl "40/5400+30:1800+30"]

1. e4 {[%emt 0:00:02]} g6 {[%emt 0:00:05]} 2. d4 {[%emt 0:00:13]} Bg7 {[%emt 0:00:04]} 3. Nc3 {[%emt 0:00:09]} c6 {[%emt 0:00:24]} 4. h3 {[%emt 0:01:34]} d6 {[%emt 0:02:42]} 5. Be3 {[%emt 0:01:11]} Nf6 {[%emt 0:07:33]} 6. f4 {[%emt 0:01:41]} Qa5 {[%emt 0:01:59]} 7. Bd3 {[%emt 0:20:27]} Nbd7 {[%emt 0:02:29]} 8. Nf3 {[%emt 0:03:08]} O-O {[%emt 0:04:13]} 9. O-O {[%emt 0:01:00]} e5 {[%emt 0:01:30]} 10. Qe1 {[%emt 0:15:16]} Nh5 {[%emt 0:05:09]} 11. dxe5 {[%emt 0:07:25]} dxe5 {[%emt 0:00:28]} 12. f5 {[%emt 0:00:12]} Nc5 {[%emt 0:10:16]} 13. Bc4 {[%emt 0:07:50]} Qb4 {[%emt 0:03:16]} 14. b3 {[%emt 0:00:07]} Nd7 {[%emt 0:08:09]} 15. fxg6 {[%emt 0:03:18]} hxg6 {[%emt 0:02:45]} 16. Ng5 {[%emt 0:02:36]} Bf6 {[%emt 0:02:47]} 17. a3 {[%emt 0:08:51]} Qe7 {[%emt 0:01:47]} 18. Qh4 {[%emt 0:05:18]} Kg7 {[%emt 0:01:05]} 19. g4 {[%emt 0:01:43]} Rh8 {[%emt 0:00:32]} 20. gxh5 {[%emt 0:00:03]} Rxh5 {[%emt 0:00:14]} 21. Qg3 {[%emt 0:00:01]} Nb6 {[%emt 0:00:43]} 22. Rxf6 {[%emt 0:01:42]} 1-0

[Event "41st Jacques-Lemans-Open 2022"]
[Site "St. Veit/Glan"]
[Date "2022.07.15"]
[Round "8.5"]
[White "Praznik, Niko"]
[Black "Riemelmoser, Franz"]
[Result "1-0"]
[ECO "C16"]
[WhiteElo "2325"]
[BlackElo "2237"]
[Annotator "ChessBase"]
[PlyCount "69"]
[EventDate "2022.07.09"]
[EventType "swiss"]
[EventCountry "AUT"]
[SourceTitle "playchess.com"]
[Source "ChessBase"]
[SourceQuality "1"]
[TimeControl "40/5400+30:1800+30"]

1. e4 {[%emt 0:00:04]} e6 {[%emt 0:00:07]} 2. d4 {[%emt 0:00:05]} d5 {[%emt 0:00:08]} 3. Nc3 {[%emt 0:00:05]} Bb4 {[%emt 0:00:09]} 4. e5 {[%emt 0:00:10]} Qd7 {[%emt 0:01:52]} 5. a3 {[%emt 0:01:00]} Bf8 {[%emt 0:03:04]} 6. Nf3 {[%emt 0:02:30]} b6 {[%emt 0:00:17]} 7. b4 {[%emt 0:02:39]} c6 {[%emt 0:01:06]} 8. Rb1 {[%emt 0:01:42]} Ne7 {[%emt 0:09:07]} 9. Bd3 {[%emt 0:00:38]} Ba6 {[%emt 0:02:12]} 10. b5 {[%emt 0:03:19]} cxb5 {[%emt 0:00:48]} 11. Nxb5 {[%emt 0:01:26]} Nec6 {[%emt 0:02:15]} 12. O-O {[%emt 0:06:09]} Be7 {[%emt 0:02:03]} 13. c3 {[%emt 0:05:31]} Bxb5 {[%emt 0:05:00]} 14. Bxb5 {[%emt 0:01:50]} a6 {[%emt 0:10:52]} 15. Bd3 {[%emt 0:08:19]} Qa7 {[%emt 0:08:13]} 16. Ng5 {[%emt 0:04:07]} h6 {[%emt 0:13:08]} 17. Nh3 {[%emt 0:02:43]} Nd7 {[%emt 0:02:32]} 18. Qg4 {[%emt 0:04:15]} Bf8 {[%emt 0:05:02]} 19. f4 {[%emt 0:12:21]} b5 {[%emt 0:01:36]} 20. Kh1 {[%emt 0:01:16]} g6 {[%emt 0:01:40]} 21. Bxg6 {[%emt 0:00:55]} fxg6 {[%emt 0:00:18]} 22. Qxg6+ {[%emt 0:00:06]} Kd8 {[%emt 0:00:33]} 23. Qxe6 {[%emt 0:00:25]} Kc7 {[%emt 0:02:25]} 24. Qxd5 {[%emt 0:02:41]} Rd8 {[%emt 0:00:30]} 25. Qf7 {[%emt 0:02:12]} Kb8 {[%emt 0:02:58]} 26. f5 {[%emt 0:00:19]} Nb6 {[%emt 0:02:14]} 27. Qf6 {[%emt 0:00:23]} Bd6 {[%emt 0:01:28]} 28. exd6 {[%emt 0:02:17]} Nd5 {[%emt 0:00:10]} 29. Qh4 {[%emt 0:01:48]} Nxc3 {[%emt 0:00:23]} 30. Rb3 {[%emt 0:02:17]} Nd5 {[%emt 0:00:32]} 31. f6 {[%emt 0:05:42]} Qf7 {[%emt 0:03:38]} 32. Rg3 {[%emt 0:00:37]} Rhg8 {[%emt 0:01:17]} 33. Rxg8 {[%emt 0:08:52]} Rxg8 {[%emt 0:02:29]} 34. Qxh6 {[%emt 0:00:23]} Rg6 {[%emt 0:03:58]} 35. Qxg6 {[%emt 0:00:35]} 1-0

[Event "41st Jacques-Lemans-Open 2022"]
[Site "St. Veit/Glan"]
[Date "2022.07.15"]
[Round "8.6"]
[White "Navaratnam, Rohan Shan Tze"]
[Black "Schernthaner, David"]
[Result "1/2-1/2"]
[ECO "A04"]
[WhiteElo "2071"]
[BlackElo "2319"]
[Annotator "ChessBase"]
[PlyCount "55"]
[EventDate "2022.07.09"]
[EventType "swiss"]
[EventCountry "AUT"]
[SourceTitle "playchess.com"]
[Source "ChessBase"]
[SourceQuality "1"]
[TimeControl "40/5400+30:1800+30"]

1. Nf3 {[%emt 0:00:05]} c5 {[%emt 0:00:21]} 2. c4 {[%emt 0:00:16]} Nc6 {[%emt 0:00:11]} 3. Nc3 {[%emt 0:00:13]} e5 {[%emt 0:00:34]} 4. e3 {[%emt 0:00:17]} Nf6 {[%emt 0:01:07]} 5. d4 {[%emt 0:03:46]} e4 {[%emt 0:01:40]} 6. Ng5 {[%emt 0:01:34]} cxd4 {[%emt 0:04:12]} 7. exd4 {[%emt 0:02:09]} Bb4 {[%emt 0:04:49]} 8. d5 {[%emt 0:03:24]} Bxc3+ {[%emt 0:19:43]} 9. bxc3 {[%emt 0:00:04]} Ne7 {[%emt 0:00:12]} 10. Qc2 {[%emt 0:04:08]} O-O {[%emt 0:01:40]} 11. Nxe4 {[%emt 0:04:21]} Nxe4 {[%emt 0:02:00]} 12. Qxe4 {[%emt 0:00:09]} Re8 {[%emt 0:01:08]} 13. Be2 {[%emt 0:07:55]} d6 {[%emt 0:00:16]} 14. O-O {[%emt 0:02:42]} Nxd5 {[%emt 0:08:18]} 15. Qxd5 {[%emt 0:06:16]} Rxe2 {[%emt 0:00:42]} 16. c5 {[%emt 0:00:52]} Be6 {[%emt 0:10:53]} 17. Qd3 {[%emt 0:04:09]} Rxa2 {[%emt 0:06:40]} 18. Rxa2 {[%emt 0:00:44]} Bxa2 {[%emt 0:00:04]} 19. cxd6 {[%emt 0:00:10]} Be6 {[%emt 0:00:40]} 20. Be3 {[%emt 0:08:06]} a5 {[%emt 0:02:03]} 21. c4 {[%emt 0:01:34]} a4 {[%emt 0:05:00]} 22. Ra1 {[%emt 0:06:04]} a3 {[%emt 0:06:31]} 23. Rxa3 {[%emt 0:04:12]} Rxa3 {[%emt 0:00:07]} 24. Qxa3 {[%emt 0:00:03]} Bxc4 {[%emt 0:00:15]} 25. Bd4 {[%emt 0:02:05]} Be6 {[%emt 0:02:32]} 26. h4 {[%emt 0:01:24]} f6 {[%emt 0:01:22]} 27. Qb4 {[%emt 0:01:26]} h6 {[%emt 0:01:00]} 28. Bc5 {[%emt 0:02:41]} 1/2-1/2

[Event "41st Jacques-Lemans-Open 2022"]
[Site "St. Veit/Glan"]
[Date "2022.07.15"]
[Round "8.7"]
[White "Hresc, Vladimir"]
[Black "Schwab, Rene"]
[Result "1-0"]
[ECO "B12"]
[WhiteElo "2308"]
[BlackElo "2124"]
[Annotator "ChessBase"]
[PlyCount "103"]
[EventDate "2022.07.09"]
[EventType "swiss"]
[EventCountry "AUT"]
[SourceTitle "playchess.com"]
[Source "ChessBase"]
[SourceQuality "1"]
[TimeControl "40/5400+30:1800+30"]

1. e4 {[%emt 0:00:33]} c6 {[%emt 0:00:05]} 2. d4 {[%emt 0:00:18]} d5 {[%emt 0:00:05]} 3. e5 {[%emt 0:00:13]} Na6 {[%emt 0:00:22]} 4. Nc3 {[%emt 0:04:26]} Nc7 {[%emt 0:00:12]} 5. Bd3 {[%emt 0:00:21]} g6 {[%emt 0:00:30]} 6. Qf3 {[%emt 0:01:55]} Nh6 {[%emt 0:04:11]} 7. h3 {[%emt 0:02:28]} Nf5 {[%emt 0:01:55]} 8. Nce2 {[%emt 0:04:39]} Nh4 {[%emt 0:03:56]} 9. Qg3 {[%emt 0:02:03]} Nf5 {[%emt 0:00:17]} 10. Qh2 {[%emt 0:00:30]} h5 {[%emt 0:06:44]} 11. Nf3 {[%emt 0:00:23]} Ne6 {[%emt 0:09:06]} 12. c3 {[%emt 0:04:44]} Neg7 {[%emt 0:07:29]} 13. Bd2 {[%emt 0:05:04]} a5 {[%emt 0:01:07]} 14. a4 {[%emt 0:01:34]} b6 {[%emt 0:00:08]} 15. Nf4 {[%emt 0:01:17]} e6 {[%emt 0:02:53]} 16. Qg1 {[%emt 0:00:48]} Ba6 {[%emt 0:03:55]} 17. Qf1 {[%emt 0:01:55]} Bxd3 {[%emt 0:01:43]} 18. Qxd3 {[%emt 0:02:57]} Be7 {[%emt 0:06:33]} 19. O-O-O {[%emt 0:02:32]} Kd7 {[%emt 0:02:36]} 20. g4 {[%emt 0:01:16]} Nh4 {[%emt 0:02:35]} 21. Nxh4 {[%emt 0:00:31]} Bxh4 {[%emt 0:00:19]} 22. Qf3 {[%emt 0:02:00]} Qe7 {[%emt 0:01:42]} 23. Nd3 {[%emt 0:05:35]} Bg5 {[%emt 0:00:47]} 24. Bxg5 {[%emt 0:02:59]} Qxg5+ {[%emt 0:00:03]} 25. Kc2 {[%emt 0:00:01]} Qe7 {[%emt 0:06:09]} 26. Qf6 {[%emt 0:01:29]} Rh7 {[%emt 0:01:20]} 27. Rhg1 {[%emt 0:03:56]} hxg4 {[%emt 0:01:29]} 28. hxg4 {[%emt 0:01:09]} Rah8 {[%emt 0:01:22]} 29. b4 {[%emt 0:03:23]} Qxf6 {[%emt 0:10:34]} 30. exf6 {[%emt 0:00:17]} Ne8 {[%emt 0:00:08]} 31. bxa5 {[%emt 0:01:31]} bxa5 {[%emt 0:00:15]} 32. Ne5+ {[%emt 0:07:45]} Kc7 {[%emt 0:00:52]} 33. g5 {[%emt 0:00:30]} Nd6 {[%emt 0:00:35]} 34. f3 {[%emt 0:02:19]} Rh3 {[%emt 0:01:34]} 35. Rd2 {[%emt 0:04:49]} R8h7 {[%emt 0:04:27]} 36. Kd3 {[%emt 0:03:46]} c5 {[%emt 0:09:34]} 37. dxc5 {[%emt 0:02:40]} Ne4 {[%emt 0:00:12]} 38. Rb2 {[%emt 0:01:36]} Nxc5+ {[%emt 0:08:46]} 39. Kd4 {[%emt 0:00:25]} Nxa4 {[%emt 0:01:20]} 40. Ra2 {[%emt 0:01:10]} R3h4+ {[%emt 0:01:40]} 41. Rg4 {[%emt 0:30:52]} Nb6 {[%emt 0:04:08]} 42. Rxa5 {[%emt 0:00:00]} Nc4 {[%emt 0:02:13]} 43. Nxc4 {[%emt 0:00:00]} Rxg4+ {[%emt 0:00:22]} 44. fxg4 {[%emt 0:00:00]} dxc4 {[%emt 0:00:05]} 45. Kc5 {[%emt 0:00:00]} Rh4 {[%emt 0:03:07]} 46. Ra7+ {[%emt 0:00:00]} Kb8 {[%emt 0:00:11]} 47. Rxf7 {[%emt 0:00:00]} Rxg4 {[%emt 0:00:02]} 48. Re7 {[%emt 0:00:00]} Rxg5+ {[%emt 0:00:10]} 49. Kb6 {[%emt 0:00:00]} Kc8 {[%emt 0:00:22]} 50. f7 {[%emt 0:00:00]} Rf5 {[%emt 0:00:08]} 51. Kc6 {[%emt 0:00:00]} Kd8 {[%emt 0:00:33]} 52. Re8# {[%emt 0:00:00]} 1-0

[Event "41st Jacques-Lemans-Open 2022"]
[Site "St. Veit/Glan"]
[Date "2022.07.15"]
[Round "8.8"]
[White "Huber, Benedikt"]
[Black "Frank, Emanuel"]
[Result "1/2-1/2"]
[ECO "D30"]
[WhiteElo "2289"]
[BlackElo "2160"]
[Annotator "ChessBase"]
[PlyCount "76"]
[EventDate "2022.07.09"]
[EventType "swiss"]
[EventCountry "AUT"]
[SourceTitle "playchess.com"]
[Source "ChessBase"]
[SourceQuality "1"]
[TimeControl "40/5400+30:1800+30"]

1. d4 {[%emt 0:00:03]} d5 {[%emt 0:00:06]} 2. c4 {[%emt 0:00:07]} e6 {[%emt 0:00:05]} 3. Nf3 {[%emt 0:00:06]} Nf6 {[%emt 0:00:15]} 4. g3 {[%emt 0:00:08]} Bb4+ {[%emt 0:00:13]} 5. Nbd2 {[%emt 0:00:13]} dxc4 {[%emt 0:00:20]} 6. Bg2 {[%emt 0:00:07]} b5 {[%emt 0:02:01]} 7. O-O {[%emt 0:00:20]} O-O {[%emt 0:01:46]} 8. Ne1 {[%emt 0:02:19]} c6 {[%emt 0:10:22]} 9. Nc2 {[%emt 0:01:15]} Be7 {[%emt 0:09:48]} 10. a4 {[%emt 0:08:25]} Nd5 {[%emt 0:02:19]} 11. e4 {[%emt 0:00:43]} Nb6 {[%emt 0:05:33]} 12. d5 {[%emt 0:05:46]} Bb7 {[%emt 0:25:55]} 13. dxe6 {[%emt 0:03:26]} fxe6 {[%emt 0:01:16]} 14. Qg4 {[%emt 0:07:07]} e5 {[%emt 0:07:45]} 15. axb5 {[%emt 0:01:28]} Bc8 {[%emt 0:07:59]} 16. Qh5 {[%emt 0:00:52]} Qc7 {[%emt 0:01:19]} 17. bxc6 {[%emt 0:24:22]} Nxc6 {[%emt 0:00:31]} 18. Nb1 {[%emt 0:00:13]} Be6 {[%emt 0:02:32]} 19. Be3 {[%emt 0:13:05]} Rad8 {[%emt 0:00:49]} 20. f4 {[%emt 0:03:12]} g6 {[%emt 0:03:34]} 21. Qe2 {[%emt 0:01:08]} Nd4 {[%emt 0:01:07]} 22. Qf2 {[%emt 0:00:10]} Bc5 {[%emt 0:01:55]} 23. Nc3 {[%emt 0:00:32]} Nxc2 {[%emt 0:09:10]} 24. Bxc5 {[%emt 0:11:25]} Nxa1 {[%emt 0:00:01]} 25. Bxf8 {[%emt 0:00:08]} Rxf8 {[%emt 0:00:09]} 26. Rxa1 {[%emt 0:00:05]} exf4 {[%emt 0:00:30]} 27. gxf4 {[%emt 0:00:44]} Rxf4 {[%emt 0:00:41]} 28. Qg3 {[%emt 0:10:03]} Nc8 {[%emt 0:05:27]} 29. e5 {[%emt 0:01:28]} Rg4 {[%emt 0:00:43]} 30. Qf3 {[%emt 0:03:11]} Rg5 {[%emt 0:00:43]} 31. Ne4 {[%emt 0:02:11]} Qb6+ {[%emt 0:00:27]} 32. Kh1 {[%emt 0:00:09]} Rf5 {[%emt 0:00:31]} 33. Qc3 {[%emt 0:00:48]} Kg7 {[%emt 0:00:29]} 34. Rd1 {[%emt 0:00:40]} Qc7 {[%emt 0:00:28]} 35. Bh3 {[%emt 0:01:00]} Qc6 {[%emt 0:00:37]} 36. Bg2 {[%emt 0:00:15]} Qc7 {[%emt 0:00:18]} 37. Rd6 {[%emt 0:00:55]} Qf7 {[%emt 0:00:31]} 38. Rd1 {[%emt 0:00:42]} Qc7 {[%emt 0:00:29]} 1/2-1/2

[Event "41st Jacques-Lemans-Open 2022"]
[Site "St. Veit/Glan"]
[Date "2022.07.15"]
[Round "8.9"]
[White "Manhardt, Thomas"]
[Black "Sandhoefner, Florian"]
[Result "0-1"]
[ECO "A01"]
[WhiteElo "2227"]
[BlackElo "2289"]
[Annotator "ChessBase"]
[PlyCount "76"]
[EventDate "2022.07.09"]
[EventType "swiss"]
[EventCountry "AUT"]
[SourceTitle "playchess.com"]
[Source "ChessBase"]
[SourceQuality "1"]
[TimeControl "40/5400+30:1800+30"]

1. b3 {[%emt 0:00:32]} d5 {[%emt 0:00:01]} 2. Bb2 {[%emt 0:00:12]} Bf5 {[%emt 0:00:08]} 3. e3 {[%emt 0:00:15]} e6 {[%emt 0:00:08]} 4. f4 {[%emt 0:00:24]} Nf6 {[%emt 0:00:09]} 5. Nf3 {[%emt 0:00:16]} h6 {[%emt 0:00:11]} 6. g3 {[%emt 0:01:19]} Be7 {[%emt 0:00:17]} 7. Bg2 {[%emt 0:00:28]} O-O {[%emt 0:00:29]} 8. d3 {[%emt 0:00:32]} c5 {[%emt 0:02:20]} 9. Nbd2 {[%emt 0:05:24]} Nc6 {[%emt 0:02:29]} 10. a3 {[%emt 0:05:00]} a5 {[%emt 0:03:04]} 11. h3 {[%emt 0:04:02]} a4 {[%emt 0:04:41]} 12. Qe2 {[%emt 0:02:52]} axb3 {[%emt 0:02:57]} 13. cxb3 {[%emt 0:06:57]} Bh7 {[%emt 0:03:38]} 14. O-O {[%emt 0:01:50]} Qb6 {[%emt 0:04:18]} 15. Rfe1 {[%emt 0:08:59]} Rfd8 {[%emt 0:02:59]} 16. Ne5 {[%emt 0:06:51]} Nxe5 {[%emt 0:08:29]} 17. fxe5 {[%emt 0:06:21]} Nd7 {[%emt 0:01:59]} 18. Kh2 {[%emt 0:01:04]} Qc7 {[%emt 0:01:17]} 19. Nf3 {[%emt 0:03:42]} b5 {[%emt 0:01:59]} 20. Rec1 {[%emt 0:02:43]} Qb8 {[%emt 0:00:42]} 21. a4 {[%emt 0:03:16]} bxa4 {[%emt 0:01:24]} 22. bxa4 {[%emt 0:00:07]} Qa7 {[%emt 0:01:12]} 23. a5 {[%emt 0:15:57]} Qa6 {[%emt 0:00:29]} 24. Bf1 {[%emt 0:00:51]} Rdb8 {[%emt 0:00:57]} 25. Bc3 {[%emt 0:00:54]} Bd8 {[%emt 0:01:55]} 26. Rcb1 {[%emt 0:03:25]} Rxb1 {[%emt 0:02:52]} 27. Rxb1 {[%emt 0:00:02]} c4 {[%emt 0:00:23]} 28. Ne1 {[%emt 0:13:04]} Nc5 {[%emt 0:00:58]} 29. e4 {[%emt 0:02:10]} cxd3 {[%emt 0:01:43]} 30. Qe3 {[%emt 0:01:47]} Nxe4 {[%emt 0:00:28]} 31. Bxd3 {[%emt 0:00:13]} Qc8 {[%emt 0:00:29]} 32. Bxe4 {[%emt 0:01:53]} Bxe4 {[%emt 0:00:17]} 33. Ra1 {[%emt 0:00:20]} Bg5 {[%emt 0:00:40]} 34. Qd4 {[%emt 0:01:04]} Qa6 {[%emt 0:00:25]} 35. Ra2 {[%emt 0:01:12]} Rc8 {[%emt 0:01:37]} 36. Ng2 {[%emt 0:01:19]} Be7 {[%emt 0:01:23]} 37. Bd2 {[%emt 0:01:05]} Qe2 {[%emt 0:02:46]} 38. Qg1 {[%emt 0:00:32]} Bb4 {[%emt 0:01:31]} 0-1

[Event "41st Jacques-Lemans-Open 2022"]
[Site "St. Veit/Glan"]
[Date "2022.07.15"]
[Round "8.10"]
[White "Besner, Bernhard"]
[Black "Rogic, Davor"]
[Result "0-1"]
[ECO "C54"]
[WhiteElo "2164"]
[BlackElo "2474"]
[Annotator "ChessBase"]
[PlyCount "38"]
[EventDate "2022.07.09"]
[EventType "swiss"]
[EventCountry "AUT"]
[SourceTitle "playchess.com"]
[Source "ChessBase"]
[SourceQuality "1"]
[TimeControl "40/5400+30:1800+30"]

1. e4 {[%emt 0:00:18]} e5 {[%emt 0:00:34]} 2. Nf3 {[%emt 0:00:39]} Nc6 {[%emt 0:00:12]} 3. Bc4 {[%emt 0:00:31]} Bc5 {[%emt 0:00:10]} 4. c3 {[%emt 0:00:32]} Nf6 {[%emt 0:00:12]} 5. d4 {[%emt 0:00:19]} exd4 {[%emt 0:00:12]} 6. O-O {[%emt 0:00:16]} Nxe4 {[%emt 0:01:06]} 7. cxd4 {[%emt 0:00:16]} d5 {[%emt 0:00:33]} 8. dxc5 {[%emt 0:00:21]} dxc4 {[%emt 0:00:22]} 9. Qe2 {[%emt 0:00:14]} Qd3 {[%emt 0:00:26]} 10. Re1 {[%emt 0:00:16]} f5 {[%emt 0:00:30]} 11. Nc3 {[%emt 0:00:07]} O-O {[%emt 0:00:33]} 12. Nxe4 {[%emt 0:00:06]} fxe4 {[%emt 0:00:07]} 13. Qxe4 {[%emt 0:00:07]} Bf5 {[%emt 0:00:59]} 14. Qh4 {[%emt 0:00:06]} Rae8 {[%emt 0:00:47]} 15. Bf4 {[%emt 0:00:10]} Be4 {[%emt 0:00:33]} 16. Rad1 {[%emt 0:15:51]} Bxf3 {[%emt 0:00:15]} 17. gxf3 {[%emt 0:00:44]} Rxe1+ {[%emt 0:00:44]} 18. Rxe1 {[%emt 0:00:13]} Nd4 {[%emt 0:00:07]} 19. Re3 {[%emt 0:03:41]} Qxe3 {[%emt 0:00:15]} 0-1

[Event "41st Jacques-Lemans-Open 2022"]
[Site "St. Veit/Glan"]
[Date "2022.07.15"]
[Round "8.11"]
[White "Hoffmann, Sebastian"]
[Black "Dotzer, Lukas"]
[Result "1-0"]
[ECO "E32"]
[WhiteElo "2148"]
[BlackElo "2269"]
[Annotator "ChessBase"]
[PlyCount "85"]
[EventDate "2022.07.09"]
[EventType "swiss"]
[EventCountry "AUT"]
[SourceTitle "playchess.com"]
[Source "ChessBase"]
[SourceQuality "1"]
[TimeControl "40/5400+30:1800+30"]

1. d4 {[%emt 0:00:02]} Nf6 {[%emt 0:00:06]} 2. c4 {[%emt 0:00:04]} e6 {[%emt 0:00:06]} 3. Nc3 {[%emt 0:00:05]} Bb4 {[%emt 0:00:05]} 4. Qc2 {[%emt 0:00:03]} O-O {[%emt 0:00:32]} 5. a3 {[%emt 0:00:29]} Bxc3+ {[%emt 0:00:34]} 6. Qxc3 {[%emt 0:00:02]} Ne4 {[%emt 0:01:25]} 7. Qc2 {[%emt 0:02:44]} f5 {[%emt 0:01:06]} 8. g3 {[%emt 0:02:01]} b6 {[%emt 0:09:02]} 9. Bg2 {[%emt 0:01:01]} Bb7 {[%emt 0:02:54]} 10. Nf3 {[%emt 0:00:40]} Nc6 {[%emt 0:02:49]} 11. O-O {[%emt 0:00:47]} Qf6 {[%emt 0:04:48]} 12. e3 {[%emt 0:06:23]} d6 {[%emt 0:02:39]} 13. b4 {[%emt 0:04:47]} a5 {[%emt 0:07:12]} 14. Nd2 {[%emt 0:18:29]} Nxd2 {[%emt 0:06:56]} 15. Bxd2 {[%emt 0:00:22]} Nd8 {[%emt 0:06:09]} 16. bxa5 {[%emt 0:03:00]} Bxg2 {[%emt 0:00:23]} 17. Kxg2 {[%emt 0:00:02]} bxa5 {[%emt 0:00:11]} 18. Rab1 {[%emt 0:03:14]} g5 {[%emt 0:08:21]} 19. Rb5 {[%emt 0:13:41]} a4 {[%emt 0:07:42]} 20. Qc3 {[%emt 0:09:39]} c6 {[%emt 0:13:17]} 21. Ra5 {[%emt 0:01:16]} Rxa5 {[%emt 0:03:09]} 22. Qxa5 {[%emt 0:00:01]} f4 {[%emt 0:01:45]} 23. exf4 {[%emt 0:09:14]} Qxd4 {[%emt 0:06:41]} 24. Bc3 {[%emt 0:01:07]} Qe4+ {[%emt 0:01:43]} 25. f3 {[%emt 0:00:01]} Qc2+ {[%emt 0:01:09]} 26. Rf2 {[%emt 0:00:09]} Qf5 {[%emt 0:00:59]} 27. Qxf5 {[%emt 0:03:24]} Rxf5 {[%emt 0:00:17]} 28. fxg5 {[%emt 0:00:04]} Nf7 {[%emt 0:04:54]} 29. h4 {[%emt 0:01:12]} Rc5 {[%emt 0:02:28]} 30. Rb2 {[%emt 0:05:46]} e5 {[%emt 0:01:18]} 31. Rb8+ {[%emt 0:01:21]} Kg7 {[%emt 0:00:08]} 32. Rb4 {[%emt 0:01:07]} Kg6 {[%emt 0:02:49]} 33. g4 {[%emt 0:06:06]} d5 {[%emt 0:00:43]} 34. Rxa4 {[%emt 0:00:05]} d4 {[%emt 0:01:01]} 35. Bb4 {[%emt 0:03:21]} Rxc4 {[%emt 0:00:06]} 36. h5+ {[%emt 0:00:05]} Kg7 {[%emt 0:00:21]} 37. Bf8+ {[%emt 0:00:08]} Kxf8 {[%emt 0:00:05]} 38. Rxc4 {[%emt 0:00:02]} d3 {[%emt 0:00:21]} 39. Kf2 {[%emt 0:01:16]} Nxg5 {[%emt 0:00:08]} 40. Rxc6 {[%emt 0:00:49]} e4 {[%emt 0:00:38]} 41. fxe4 {[%emt 0:30:48]} Nxe4+ {[%emt 0:30:13]} 42. Ke3 {[%emt 0:02:03]} d2 {[%emt 0:00:06]} 43. Kxe4 1-0